Cogmind - Beta 15 @@@ ROGUE MODE // 2025.07.12 @ 22:28:49 Player: Inverisimilidude Result: Destroyed by YB-1RR(j) with Overtuned Pulse Rifle Performance ------------- Evolutions (0) 0 Regions Visited (4) 800 Robots Destroyed (14) 70 Value Destroyed (347) 347 Prototype IDs (1) 20 Alien Tech Used (0) 0 Bonus (413) 413 TOTAL SCORE: 1650 Bonus ------- Follower Combat Kills 113 Registered with UFD 300 Cogmind --------- Core Integrity 0/250 Matter 300/300 Energy 100/100 System Corruption 1% Temperature Cool (12) Movement Core (50) Location -7/Scraptown Parts ------- > --- POWER (1) -------- (None) > --- PROPULSION (2) --- (None) > --- UTILITY (2) ------ (None) > --- WEAPON (2) ------- (None) > --- INVENTORY (5) ---- Light Ion Engine ECM Suite Light Armor Plating Particle Gun Advanced Assault Cannon Peak State ------------ > --- POWER ------------ Makeshift Power Source > --- PROPULSION ------- Aluminum Leg Improved Aluminum Leg > --- UTILITY ---------- Medium Storage Unit Splice Drone Bay > --- WEAPON ----------- Subdweller Machine Gun Slug Cannon > --- INVENTORY -------- Light Ion Engine Aluminum Leg Large Storage Unit Advanced Targeting Computer ECM Suite ECM Suite Light Armor Plating Particle Gun Advanced Assault Cannon [Rating: 22] Favorites ----------- Power Ion Engine Engine Ion Engine Propulsion Aluminum Leg Leg Aluminum Leg Utility Medium Storage Unit Device ECM Suite Storage Medium Storage Unit Processor Signal Interpreter Weapon Assault Rifle Energy Gun Medium Laser Ballistic Gun Assault Rifle Ballistic Cannon Slug Cannon Build | -11 -10 -10 -10 -7 ------- Run | Yrd Mat Min Sub Scr Slots Evolved . | . . . . . Power . | . . . . . Propulsion . | . . . . . Utility . | . . . . . Weapon . | . . . . . Parts Attached 28 | 6 2 10 6 4 Power 5 | 1 . 1 2 1 Engine 5 | 1 . 1 2 1 Core . | . . . . . Reactor . | . . . . . Propulsion 8 | 2 . 4 1 1 Treads . | . . . . . Leg 8 | 2 . 4 1 1 Wheel . | . . . . . Hover . | . . . . . Flight . | . . . . . Utility 6 | 1 2 3 . . Device 3 | . 1 2 . . Storage 2 | 1 1 . . . Processor 1 | . . 1 . . Hackware . | . . . . . Protection . | . . . . . Artifact . | . . . . . Weapon 9 | 2 . 2 3 2 Energy Gun 2 | 1 . . 1 . Energy Cannon . | . . . . . Ballistic Gun 5 | 1 . 2 2 . Ballistic Cannon 2 | . . . . 2 Launcher . | . . . . . Special Weapon . | . . . . . Impact Weapon . | . . . . . Slashing Weapon . | . . . . . Piercing Weapon . | . . . . . Special Melee Weapon . | . . . . . Unidentified Prototypes 1 | . . 1 . . Parts Lost 2 | . . . 1 1 Power . | . . . . . Propulsion 1 | . . . . 1 Utility . | . . . . . Weapon 1 | . . . 1 . Highest Loss Streak 1 | . . . 1 1 To Critical Strikes . | . . . . . Average Backups 8 | 1 4 8 8 7 Power . | . 1 1 . . Propulsion 1 | . 1 1 1 . Utility 4 | . 1 3 5 5 Weapon 1 | . 1 2 1 1 Tool/Special . | . . . . . Unused Backups 5 | . . 1 1 3 Power . | . . . . . Propulsion 1 | . . 1 . . Utility 3 | . . . . 3 Weapon 1 | . . . 1 . Tool/Special . | . . . . . Average Slot Usage (%) 97 | . 93 96 99 98 Engine 13 | . 14 14 14 13 Leg 27 | . 28 27 28 27 Device 4 | . 7 11 . . Storage 13 | . 14 14 14 13 Processor 9 | . . 2 14 13 Energy Gun 1 | . 14 3 . . Ballistic Gun 24 | . 14 20 26 26 Peak Build Rating 22 | 6 7 13 10 22 Average Rating 8 | 4 6 7 9 9 On Entrance 5 | . 6 7 7 9 Naked Turns 18 | . . . . 18 Heaviest Build 33 | 13 20 20 21 33 Greatest Support 25 | 20 20 25 20 23 Greatest Overweight (x) 2 | . . 1 1 2 Average Overweight (x) . | . . . . . Largest Inventory Capacity 10 | 8 10 10 10 10 Average Capacity 9 | 6 9 10 10 9 Most Carried 10 | 3 6 10 10 10 Average Carried 8 | 1 4 8 8 7 Final Capacity 10 | 8 10 10 10 5 Final Carried 10 | 3 6 10 7 5 Class Distribution -------------------- 68% | Mutant 31% | Scavenger-Mutant Dominant Class ---------------- Mutant | -10/Materials Mutant | -10/Mines Scavenger-Mutant | -10/Subcaves Mutant | -7/Scraptown Resources | -11 -10 -10 -10 -7 ----------- Run | Yrd Mat Min Sub Scr Matter Collected 766 | 205 16 219 201 125 Remotely . | . . . . . Salvage Created 470 | . 16 292 162 . Parts 33 | . 1 21 11 . Haulers Intercepted . | . . . . . Recyclers Shooed 1 | . . 1 . . Parts Field Recycled . | . . . . . Retrieved Matter . | . . . . . Parts Self-Destructed 11 | . . . 11 . Prevented . | . . . . . Kills | -11 -10 -10 -10 -7 ------- Run | Yrd Mat Min Sub Scr Combat Hostiles Destroyed 15 | . . 10 5 . Guns 15 | . . 10 5 . Classes Destroyed 6 | . 1 4 1 . Recycler 1 | . . 1 . . Operator 1 | . 1 . . . Swarmer 5 | . . 4 1 . Grunt 3 | . . 3 . . Subdweller 4 | . . . 4 . Assembled 3 | . . 3 . . Best Kill Streak 3 | . 1 3 2 . Combat Bots Only 3 | . . 3 2 . Max Kills in Single Turn 2 | . 1 2 1 . Gunslinging 1 | . . 1 . . Exploded . | . . . . . Melee . | . . . . . Uniques/NPCs Destroyed . | . . . . . Combat | -11 -10 -10 -10 -7 -------- Run | Yrd Mat Min Sub Scr Hostile Shots Fired 119 | . . 47 26 46 Missed 44 | . . 15 8 21 Hits 75 | . . 32 18 25 Melee 1 | . . 1 . . Projectile 74 | . . 31 18 25 Critical Strikes 2 | . . 2 . . Damage Taken 1160 | . 18 343 353 446 Core 268 | . . 63 63 142 Absorbed by Shields . | . . . . . Core Remaining (%) 100 | 100 . . . . Volleys Fired 83 | . 3 38 32 10 Largest 2 | . 2 2 2 1 Hottest 85 | . 70 70 85 40 Shots Fired 156 | . 6 76 64 10 Gun 146 | . 6 76 64 . Cannon 10 | . . . . 10 Launcher . | . . . . . Special . | . . . . . Kinetic 122 | . 3 47 62 10 Thermal 34 | . 3 29 2 . Explosive . | . . . . . Electromagnetic . | . . . . . Robot Hit Streak 14 | . 3 8 14 . Robot Miss Streak 4 | . 1 4 3 . Penetration Max . | . . . . . Secondary Targets 3 | . . 3 . . Max Gunslinging Chain 1 | . . 1 . . Shots Hit Robots 83 | . 4 40 39 . Core Hits 32 | . 2 20 10 . Critical Kills 1 | . . 1 . . Critical Parts Destroyed . | . . . . . Critical Strikes 2 | . . 2 . . Burn 1 | . . 1 . . Destroy 1 | . . 1 . . Melee Attacks . | . . . . . Impact . | . . . . . Slashing . | . . . . . Piercing . | . . . . . Sneak Attacks . | . . . . . Combat Hostiles . | . . . . . Follow-up Attacks . | . . . . . Damage Inflicted 700 | . 37 415 248 . Guns 700 | . 37 415 248 . Cannons . | . . . . . Explosions . | . . . . . Melee . | . . . . . Ramming . | . . . . . Kinetic 490 | . 25 217 248 . Thermal 210 | . 12 198 . . Explosive . | . . . . . Electromagnetic . | . . . . . Impact . | . . . . . Slashing . | . . . . . Piercing . | . . . . . Highest Corruption 1 | . . . . 1 Average Corruption 1 | . . . . 1 Corruption Purged . | . . . . . Corruption Blocked . | . . . . . Overload Shots . | . . . . . Overflow Damage . | . . . . . Projectiles . | . . . . . Explosions . | . . . . . Melee . | . . . . . Knockbacks . | . . . . . Impact . | . . . . . Kinetic . | . . . . . Secondary . | . . . . . Self-Inflicted Damage . | . . . . . Shots . | . . . . . Rammed . | . . . . . Targets Rammed . | . . . . . Kicked . | . . . . . Crushed . | . . . . . Highest Temperature 188 | . 50 188 . 70 Average Temperature 50 | . 26 58 . 27 Received Heat Transfer 222 | . . 105 9 108 Siege Activations . | . . . . . Martial Activations . | . . . . . Shielding Activations . | . . . . . Robots Disrupted . | . . . . . Combat Hostiles . | . . . . . Robots Corrupted . | . . . . . Combat Hostiles . | . . . . . Parts Fried . | . . . . . Impact Corruptions . | . . . . . Robots Melted . | . . . . . Combat Hostiles . | . . . . . Parts Melted 1 | . . 1 . . Heat Transferred 703 | . 37 666 . . Parts Sabotaged . | . . . . . Parts Stolen . | . . . . . Parts Stripped . | . . . . . Power Chain Reactions . | . . . . . Alert | -11 -10 -10 -10 -7 ------- Run | Yrd Mat Min Sub Scr Maximum Alert Level . | . . . . . Low Security (%) 100 | 100 100 100 . . Level 1 . | . . . . . Level 2 . | . . . . . Level 3 . | . . . . . Level 4 . | . . . . . Level 5 . | . . . . . High Security . | . . . . . Max Security . | . . . . . Peak Influence 129 | . 5 129 . . Initial . | . . . . . Average 20 | . . 23 . . Influence Increases 388 | . 5 304 79 . Destroy 0b10 Robot/C 300 | . . 240 60 . Destroy 0b10 Robot/NC 10 | . 5 5 . . Destroy Leader 60 | . . 50 10 . Allied During Kill 18 | . . 9 9 . Influence Decreases 388 | . 5 304 79 . Time Decay 328 | . 5 284 39 . Lost Ally 60 | . . 20 40 . Squads Dispatched 3 | . 1 2 . . Investigation 1 | . . 1 . . Extermination . | . . . . . Reinforcement 1 | . 1 . . . Assault 1 | . . 1 . . Garrison . | . . . . . Intercept . | . . . . . Searches Triggered . | . . . . . Construction Impeded . | . . . . . Haulers Reinforced . | . . . . . Active Scanning Responses . | . . . . . Cargo Convoy Interrupts . | . . . . . Stealth | -11 -10 -10 -10 -7 --------- Run | Yrd Mat Min Sub Scr Distress Signals . | . . . . . Communications Jammed . | . . . . . Distress Signals . | . . . . . Times Spotted 41 | . 1 25 7 8 Peak Tracking Total 15 | . 1 4 3 15 Tactical Retreats 3 | . . 3 . . Traps | -11 -10 -10 -10 -7 ------- Run | Yrd Mat Min Sub Scr Traps Triggered 1 | . 1 . . . Indirectly . | . . . . . Trap Hack Attempts . | . . . . . Triggered . | . . . . . Disarmed . | . . . . . Reprogrammed . | . . . . . Reused . | . . . . . Traps Extracted . | . . . . . Installed . | . . . . . Triggered . | . . . . . Machines | -11 -10 -10 -10 -7 ---------- Run | Yrd Mat Min Sub Scr Machines Disabled . | . . . . . Max in Single Turn . | . . . . . Machines Repaired . | . . . . . Machines Dismantled . | . . . . . Machines Sabotaged . | . . . . . Overloaded Fab Kills . | . . . . . Hacking | -11 -10 -10 -10 -7 --------- Run | Yrd Mat Min Sub Scr Machines Accessed 6 | . . 2 . 4 Terminals 1 | . . 1 . . Fabricators . | . . . . . Repair Stations . | . . . . . Recycling Units . | . . . . . Scanalyzers . | . . . . . Garrison Access . | . . . . . Total Hacks 18 | . . 6 . 12 Successful 15 | . . 3 . 12 Failed 3 | . . 3 . . Catastrophic 1 | . . 1 . . Database Lockouts . | . . . . . Manual 4 | . . 4 . . Terminals 5 | . . 5 . . Fabricators . | . . . . . Repair Stations . | . . . . . Recycling Units . | . . . . . Scanalyzers . | . . . . . Garrison Access . | . . . . . Terminal Hacks 15 | . . 3 . 12 Record 7 | . . . . 7 Robot Analysis 5 | . . . . 5 Open Door 1 | . . 1 . . Branch Access Points 1 | . . 1 . . Zone Layout 1 | . . 1 . . Fabricator Hacks . | . . . . . Repair Station Hacks . | . . . . . Recycling Unit Hacks . | . . . . . Scanalyzer . | . . . . . Garrison Access Hacks . | . . . . . Unauthorized Hacks . | . . . . . Terminals . | . . . . . Fabricators . | . . . . . Repair Stations . | . . . . . Recycling Units . | . . . . . Scanalyzers . | . . . . . Garrison Access . | . . . . . Data Cores Recovered . | . . . . . Used . | . . . . . Hacking Detections 1 | . . 1 . . Full Trace Events 1 | . . 1 . . Feedback Events . | . . . . . Feedback Blocked . | . . . . . Robot Schematics Acquired . | . . . . . Robots Built . | . . . . . Authchips . | . . . . . Time . | . . . . . Total Robot Build Rating . | . . . . . Part Schematics Acquired . | . . . . . Parts Built . | . . . . . Authchips . | . . . . . Time . | . . . . . Total Part Build Rating . | . . . . . Parts Repaired . | . . . . . Time . | . . . . . Parts Recycled . | . . . . . Recycled Matter . | . . . . . Retrieved Matter . | . . . . . Retrieved Components . | . . . . . Parts Scanalyzed . | . . . . . Part Schematics Acquired . | . . . . . Parts Damaged . | . . . . . Bothacking | -11 -10 -10 -10 -7 ------------ Run | Yrd Mat Min Sub Scr Used RIF Installer . | . . . . . Robots Hacked . | . . . . . Non-combat . | . . . . . Combat . | . . . . . Robot Hacks Applied . | . . . . . Relay Couplers Released . | . . . . . Fabnet Peak Effective % . | . . . . . Robots Rewired . | . . . . . Allies Hacked . | . . . . . Hacks Repelled . | . . . . . Allies | -11 -10 -10 -10 -7 -------- Run | Yrd Mat Min Sub Scr Total Allies 4 | . . 4 . . Largest Group 3 | . . 3 3 . Highest-Rated Group 40 | . . 40 40 . Highest-Rated Ally 31 | . . 31 16 . Total Orders 1 | . . . . 1 EXPLORE 1 | . . . . 1 Ally Attacks 44 | . . 16 22 6 Total Damage 525 | . . 248 256 21 Kills 8 | . . 5 3 . Allies Corrupted . | . . . . . Allies Melted . | . . . . . Intel | -11 -10 -10 -10 -7 ------- Run | Yrd Mat Min Sub Scr Active Infowar (turns) 1024 | . 78 946 . . ECM 1024 | . 78 946 . . Robot Analysis Total 5 | . . . . 5 Derelict Logs Recovered 4 | . . 2 1 1 Drone Launches 6 | . . . . 6 Drone Recoveries 4 | . . . . 4 Exploration | -11 -10 -10 -10 -7 ------------- Run | Yrd Mat Min Sub Scr Turns Passed 4423 | 71 138 1470 773 1971 Spaces Moved 3123 | 52 103 947 432 1589 Core 26 | 4 . . . 22 Treads . | . . . . . Legs 3097 | 48 103 947 432 1567 Wheels . | . . . . . Hover . | . . . . . Flight . | . . . . . Fastest Speed 50 | 50 120 120 120 50 Average Speed 125 | 114 120 120 152 121 Slowest Speed 260 | 120 120 190 190 260 Overloaded Moves . | . . . . . Propulsion Burnouts . | . . . . . Robots Hopped . | . . . . . Potential Cave-ins . | . . . . . Cave-ins Triggered . | . . . . . Exploration Rate (%) 45 | 4 23 99 21 82 Regions Visited 4 Branch Regions 3 Pre-discovered Areas . | . . . . . Known Exits Taken 2 | . . 1 1 . Unknown Exits Taken 2 | 1 1 . . . Scrap Searched 10 | . . 1 3 6 Spaces Dug 1 | . . . . 1 Terrain Destroyed 1 | . . . . 1 Melee . | . . . . . Projectile 1 | . . . . 1 AOE . | . . . . . Terrain Rammed . | . . . . . Walls Destroyed . | . . . . . Machines Disabled . | . . . . . Actions | -11 -10 -10 -10 -7 --------- Run | Yrd Mat Min Sub Scr Total 3485 | 60 111 1210 487 1617 Wait 217 | . . 201 8 8 Move 3119 | 51 102 946 431 1589 Hop . | . . . . . Pick Up 15 | 3 3 6 1 2 Fast Attach 9 | 6 2 . . 1 Attach 4 | . . 1 3 . Detach . | . . . . . Swap 21 | . . 10 6 5 Drop 16 | . 1 8 5 2 Fire 83 | . 3 38 32 10 Melee . | . . . . . Ram . | . . . . . Kick . | . . . . . Crush . | . . . . . Escape Stasis . | . . . . . Rewire 1 | . . . 1 . Trap . | . . . . . Miscellaneous . | . . . . . Route ------- -11/Scrapyard -10/Materials -10/Mines (discovered 3 exits: *Mat x2 / *Sub) -10/Subcaves -7/Scraptown (discovered 2 exits: *Fac x2) History --------- Turn | Location | Event 11 | -11/Scrapyard | Discovered new exit (range 15) 72 | -11/Scrapyard | Entered Materials 176 | -10/Materials | Discovered new exit (range 15) 210 | -10/Materials | Entered Mines 305 | -10/Mines | Build established: Mutant 339 | -10/Mines | Learned Materials stockpile data 354 | -10/Mines | Assembled infested the area 425 | -10/Mines | Met a Derelict testing a Signal Generator 672 | -10/Mines | Discovered new exit (range 7) 871 | -10/Mines | Discovered new exit (range 6) 1116 | -10/Mines | Build established: Scavenger-Mutant 1144 | -10/Mines | Found the Drone Emporium 1153 | -10/Mines | Found Prototype Device 1154 | -10/Mines | Identified Splice Drone Bay 1183 | -10/Mines | Assisted by bots powering up and referring to "LRC-V3" 1261 | -10/Mines | Found a Scrap Suit stashed away for nefarious purposes 1280 | -10/Mines | Discovered new exit (range 8) 1295 | -10/Mines | Joined a pair of Derelicts in attacking an 0b10 outpost 1308 | -10/Mines | Learned 2 Materials zone layouts 1406 | -10/Mines | Identified exit to Materials 1579 | -10/Mines | Identified exit to Subcaves 1622 | -10/Mines | Build established: Mutant 1680 | -10/Mines | Entered Subcaves 1680 | -10/Subcaves | Accompanied by 3 allies 1681 | -10/Subcaves | Approached by a straggling Scientist 2026 | -10/Subcaves | Core integrity fell below 50% 2028 | -10/Subcaves | Build established: Scavenger-Mutant 2276 | -10/Subcaves | Learned location of 1 exit from Materials 2335 | -10/Subcaves | Scientist uncovered a shortcut to Scraptown 2393 | -10/Subcaves | Shifting Twisted Machinery released Sub. Shrapnel Launcher 2400 | -10/Subcaves | Shifting Twisted Machinery released Piercing Trap 2452 | -10/Subcaves | Identified exit to Scraptown 2453 | -10/Subcaves | Entered Scraptown 2753 | -7/Scraptown | Build established: Mutant 2800 | -7/Scraptown | Discovered new exit (range 3) 2807 | -7/Scraptown | Identified exit to Factory 2840 | -7/Scraptown | Scanned Subdweller tech in exchange for log data 2845 | -7/Scraptown | Learned Factory trap positions 2883 | -7/Scraptown | Visited Bundlers 2990 | -7/Scraptown | Visited SPCMW 3076 | -7/Scraptown | Visited Symbiants 3120 | -7/Scraptown | Visited Shadow of the Wyrm 3479 | -7/Scraptown | Visited Red Mages 3530 | -7/Scraptown | Visited Comm Corps 3590 | -7/Scraptown | Visited Cyclists 3784 | -7/Scraptown | Visited UFD Registry 3786 | -7/Scraptown | Registered with UFD as "Phasesys" 3838 | -7/Scraptown | Visited Scrapoid Pod Storage 3910 | -7/Scraptown | Visited Abandonware Association 3942 | -7/Scraptown | Discovered exit to Factory (range 5) 4061 | -7/Scraptown | Learned abandonware demo "REVENGE.EXE" 4061 | -7/Scraptown | Learned abandonware demo "KABOOM.EXE" 4112 | -7/Scraptown | Visited Analyses Database 4139 | -7/Scraptown | Visited DA-N13 Charitable Foundation 4150 | -7/Scraptown | Found DCF Scrap (26 items) 4369 | -7/Scraptown | Attacked by Scraptown defenders 4406 | -7/Scraptown | Released all parts (6) 4408 | -7/Scraptown | Core integrity fell below 20% 4424 | -7/Scraptown | Destroyed by YB-1RR(j) with Overtuned Pulse Rifle Last Messages --------------- Bay (repair cost: 2). 04402_ Machine disabled. 04403_ Splice Drone retrieved by Splice Drone Bay (repair cost: 2). 04403_ Aluminum Leg destroyed. 04403_ Splice Drone retrieved by Splice Drone Bay (repair cost: 2). 04403_ Splice Drone injecting HQ-J7M(p)... 04404_ Splice Drone retrieved by Splice Drone Bay (repair cost: 2). 04404_ Splice Drone injecting BK-PIR(E)... 04405_ Machine disabled. 04406_ Released Slug Cannon. 04406_ Released Mak. Power Source. 04406_ Released Med. Storage Unit. 04406_ Released Sub. Machine Gun. 04406_ Released Imp. Aluminum Leg. 04406_ Released Splice Drone Bay. 04406_ >> Lost connection to Splice Drone. 04412_ Acquired 105 matter. Map ----- +----------------------------------------------------+ | "#?" #??????????????? | | "##" ##????????????????? | | " #???????????????? | | """"""""""""""""" "##" #??????????????? | | """"""""""""""""" "#?" ###??????????????? | | ###############"" "#?? # ###????????????????? | | ??????????????#"" "#########?????????????????? | | ??????????????#"" "## """"#?????????????????? | | "?????????????#"" "## " "#?????????????????? | | ????????????###"" "## X"#?????????????????? | | ???????###### #"" "## "#?????????????????? | | ????? ""#?????????????????? | | ????? "## " "#?????????????????? | | ??????####### #"" "## """"#?????????????????? | | ????????????###"" "## """"#?????????????????? | | ??????????????#"" "#########?????????????????? | | ??????????????#"" "#?????????????????????????? | | ??????????????#"" "#########?????????????????? | | ???????########"" "## #?????????????????? | | ???????"""""""""" ""# !% #?????????????????? | | ???"""""""""""""" !! #?????????????????? | | ?? ##j![=###?????????????????? | | ?? "##=[=!###?????????????????? | | ? ##[ ]/[*#?????????????????? | | ? [!=##!= %=*#?????????????????? | | ? =]* #@!!*=*#?????????????????? | | ????""""""""" """"" !!!#########?????????????????? | | ????????##### ###### ! ##????????????????????????? | | ??????????? ?????# "#????????????????????????? | | ????????? ?????## "#????????????????????????? | | ????????# ?????#" ##????????????????????????? | | ????????# ??????## #?????????????????????????? | | ????????? ?????????# #?????????????????????????? | | ????????#??????????# ############??????????????? | | ???????????????????# #??????????????? | | ???????????????????# ##??????????????? | | ???????????????????# #??????????????? | | ???????????????????# #??????????????? | | ???????????????????# #??????????????? | | ???????????????????# ############??????????????? | | ???????????????????# #?????????????????????????? | | ???????????????????# "?????????????????????????? | | ???????????????????# ""????????????????????????? | | ??????????????????? ???????????????????????? | | ?????????????????? " "??????????????????????? | | ????????????????? """"??????????????????????? | | ????????????????""|## #####??????????????????????? | | ?????????????????""?###??????????????????????????? | | ?????????????????????????????????????????????????? | | ?????????????????????????????????????????????????? | +----------------------------------------------------+ Best States ------------- Heat Dissipation 25 Energy Generation 15 Energy Capacity 250 Matter Stores 300 Matter Capacity 300 Sight Range 16 Terrain Scan Density 10 ECM Strength 1 Evasion (%) 55 Item Schematics ----------------- None Robot Schematics ------------------ None Fabricated ------------ Nothing Repaired ---------- Nothing Alien Tech Used ----------------- None Achievements -------------- None Challenges ------------ None Game ------ Seed CombatAbsorptionDevice Manual? 0 Play Time 00:29:20 Cumulative 43.4 hours Start 2025.07.12 @ 22:01:36 End 2025.07.12 @ 22:28:49 Sessions 1 Manual Loads 0 Difficulty Rogue Special Mode None Game No. 59 Rogue 59 Adventurer 0 Explorer 0 Win Type - Total 0 Types 0/0/0/0/0/0/0/0/0/0 Lore% 36 Gallery% 29 Achievement% 30 Wizard Run 0 Options --------- Layout 1 ASCII 0 Keyboard 0 Movement Arrows Keybinds 0 Fullscreen 1 Font 24/Smallcaps Map View 50x35 Zoom Use 0% Tactical HUD 1 Map Filters NONE Filters NONE Steam 1 RUN: dfd0eea6-dd25-402f-8773-aaa714c2f424